fUSD/lending_fUSD_20250521
["ID","MTS","AMOUNT","RATE_DAILY","PERIOD"]
[361879093,1747861875663,-1582.56,0.00038465,30]
[361879094,1747861875672,-856.46,0.00038465,30]
[361879095,1747861875682,-420.0,0.00038465,30]
[361879096,1747861875692,-420.0,0.00038465,30]
[361879097,1747861875702,-420.0,0.00038465,30]
[361879098,1747861875712,-420.0,0.00038465,30]
[361879099,1747861875722,-1242.78,0.00038465,30]
[361879100,1747861875731,-870.67,0.00038465,30]
[361879101,1747861875741,-420.0,0.00038465,30]
[361879102,1747861875750,-409.62,0.00038465,30]
[361879103,1747861875761,-420.0,0.00038465,30]
[361879104,1747861875773,-3105.52,0.00038465,30]
[361879105,1747861875785,-653.16,0.00038465,30]
[361879106,1747861875794,-420.0,0.00038465,30]
[361879107,1747861875804,-420.0,0.00038465,30]
[361879108,1747861875813,-1267.25,0.00038465,30]
[361879109,1747861875823,-949.98,0.00038465,30]
[361879110,1747861875833,-830.33,0.00038465,30]
[361879111,1747861875843,-420.0,0.00038465,30]
[361879112,1747861875853,-718.49,0.00038465,30]
[361879113,1747861875863,-420.0,0.00038465,30]
[361879114,1747861875872,-1538.1,0.00038465,30]
[361879115,1747861875882,-420.0,0.00038465,30]
[361879116,1747861875891,-510.54,0.00038465,30]
[361879117,1747861875901,-834.46,0.00038465,30]
[361879118,1747861875911,-425.26,0.00038465,30]
[361879119,1747861875921,-783.09,0.00038465,30]
[361879120,1747861875931,-613.35,0.00038465,30]
[361879121,1747861875941,-420.0,0.00038465,30]
[361879122,1747861875951,-474.38,0.00038465,30]
[361879123,1747861875960,-860.11,0.00038465,30]
[361879124,1747861875970,-195.35,0.00038465,30]
[361879125,1747861875980,-2236.85,0.00038465,30]
[361879126,1747861875991,-420.0,0.00038465,30]
[361879127,1747861876001,-863.88,0.00038465,30]
[361879128,1747861876011,-420.0,0.00038465,30]
[361879129,1747861876021,-420.0,0.00038465,30]
[361879130,1747861876031,-1588.48,0.00038465,30]
[361879131,1747861876042,-420.0,0.00038465,30]
[361879132,1747861876051,-420.0,0.00038465,30]
[361879133,1747861876061,-487.03,0.00038465,30]
[361879134,1747861876070,-1019.8,0.00038465,30]
[361879135,1747861876080,-420.0,0.00038465,30]
[361879136,1747861876090,-921.43,0.00038465,30]
[361879137,1747861876100,-421.35,0.00038465,30]
[361879138,1747861876109,-2009.89,0.00038465,30]
[361879139,1747861876119,-420.0,0.00038465,30]
[361879140,1747861876128,-201.6,0.00038465,30]
[361879141,1747861876138,-420.0,0.00038465,30]
[361879142,1747861876148,-600.01,0.00038465,30]
[361879143,1747861876158,-1225.94,0.00038465,30]
[361879144,1747861876168,-1433.39,0.00038465,30]
[361879145,1747861876178,-352.62,0.00038465,30]
[361879146,1747861876188,-681.14,0.00038465,30]
[361879147,1747861876198,-907.09,0.00038465,30]
[361879148,1747861876207,-420.0,0.00038465,30]
[361879149,1747861876216,-1099.56,0.00038465,30]
[361879150,1747861876226,-420.0,0.00038465,30]
[361879151,1747861876236,-1854.81,0.00038465,30]
[361879152,1747861876245,-513.67,0.00038465,30]
[361879153,1747861876255,-420.0,0.00038465,30]
[361879154,1747861876264,-460.05,0.00038465,30]
[361879155,1747861876274,-563.11,0.00038465,30]
[361879156,1747861876286,-494.225928,0.00038465,14]
[361879157,1747861876296,-420.0,0.00038465,30]
[361879158,1747861876306,-494.225928,0.00038465,14]
[361879159,1747861876316,-771.1,0.00038465,30]
[361879160,1747861876326,-974.75,0.00038465,30]
[361879161,1747861876335,-420.0,0.00038465,30]
[361879162,1747861876345,-621.53,0.00038465,30]
[361879163,1747861876356,-420.0,0.00038465,30]
[361879164,1747861876367,-494.225928,0.00038465,14]
[361879165,1747861876376,-494.225928,0.00038465,14]
[361879166,1747861876386,-1260.05,0.00038465,30]
[361879167,1747861876395,-1101.46,0.00038465,30]
[361879168,1747861876404,-420.0,0.00038465,30]
[361879169,1747861876414,-420.0,0.00038465,30]
[361879170,1747861876424,-420.0,0.00038465,30]
[361879171,1747861876434,-420.0,0.00038465,30]
[361879172,1747861876444,-1336.49,0.00038465,30]
[361879173,1747861876454,-420.0,0.00038465,30]
[361879174,1747861876463,-242.53,0.00038465,30]
[361879175,1747861876474,-420.0,0.00038465,30]
[361879176,1747861876483,-1482.03,0.00038465,30]
[361879177,1747861876493,-1999.71,0.00038465,30]
[361879178,1747861876503,-1405.53,0.00038465,30]
[361879179,1747861876513,-484.42,0.00038465,30]
[361879180,1747861876522,-420.0,0.00038465,30]
[361879181,1747861876531,-420.0,0.00038465,30]
[361879182,1747861876553,-420.0,0.00038465,30]
[361879183,1747861876565,-600.07,0.00038465,30]
[361879184,1747861876576,-420.0,0.00038465,30]
[361879185,1747861876586,-420.0,0.00038465,30]
[361879186,1747861876596,-1343.24,0.00038465,30]
[361879187,1747861876606,-420.0,0.00038465,30]
[361879188,1747861876616,-420.0,0.00038465,30]
[361879189,1747861876627,-420.0,0.00038465,30]
[361879190,1747861876637,-244.09,0.00038465,30]
[361879191,1747861876648,-420.0,0.00038465,30]
[361879192,1747861876658,-1270.44,0.00038465,30]
[361879193,1747861876668,-420.0,0.00038465,30]
[361879194,1747861876679,-420.0,0.00038465,30]
[361879195,1747861876689,-1423.82,0.00038465,30]
[361879196,1747861876699,-420.0,0.00038465,30]
[361879197,1747861876709,-610.27,0.00038465,30]
[361879198,1747861876719,-420.0,0.00038465,30]
[361879199,1747861876729,-420.0,0.00038465,30]
[361879200,1747861876740,-1095.73,0.00038465,30]
[361879201,1747861876751,-420.0,0.00038465,30]
[361879202,1747861876762,-420.0,0.00038465,30]
[361879203,1747861876771,-946.42,0.00038465,30]
[361879204,1747861876782,-420.0,0.00038465,2]
[361879205,1747861876792,-1879.79,0.00038465,30]
[361879206,1747861876802,-420.0,0.00038465,30]
[361879207,1747861876812,-420.0,0.00038465,30]
[361879208,1747861876824,-420.0,0.00038465,30]
[361879209,1747861876834,-1133.41,0.00038465,30]
[361879210,1747861876845,-1135.78,0.00038465,30]
[361879211,1747861876855,-449.11,0.00038465,30]
[361879212,1747861876865,-1361.78,0.00038465,30]
[361879213,1747861876875,-423.34,0.00038465,30]
[361879214,1747861876886,-1379.37,0.00038465,30]
[361879215,1747861876896,-448.97623004,0.00038465,30]
[361879216,1747861876906,-401.15,0.00038465,30]
[361879217,1747861876916,-420.0,0.00038465,30]
[361879218,1747861876926,-420.0,0.00038465,30]
[361879219,1747861876935,-1990.14,0.00038465,30]
[361879220,1747861876946,-3008.91,0.00038465,30]
[361879221,1747861876956,-1301.98,0.00038465,30]
[361879222,1747861876967,-420.0,0.00038465,30]
[361879223,1747861876983,-420.0,0.00038465,30]
[361879224,1747861876994,-420.0,0.00038465,30]
[361879225,1747861877004,-420.0,0.00038465,30]
[361879226,1747861877014,-776.49,0.00038465,30]
[361879227,1747861877024,-420.0,0.00038465,30]
[361879228,1747861877034,-267.64,0.00038465,30]
[361879229,1747861877044,-470.05,0.00038465,30]
[361879230,1747861877054,-420.0,0.00038465,30]
[361879231,1747861877064,-420.0,0.00038465,30]
[361879232,1747861877075,-707.16,0.00038465,30]
[361879233,1747861877086,-621.51,0.00038465,30]
[361879234,1747861877096,-420.0,0.00038465,30]
[361879235,1747861877106,-420.0,0.00038465,30]
[361879236,1747861877116,-420.0,0.00038465,7]
[361879237,1747861877126,-1194.37,0.00038465,30]
[361879238,1747861877137,-420.0,0.00038465,30]
[361879239,1747861877147,-1514.73,0.00038465,30]
[361879240,1747861877158,-420.0,0.00038465,30]
[361879241,1747861877169,-420.0,0.00038465,30]
[361879242,1747861877179,-1033.36,0.00038465,30]
[361879243,1747861877189,-917.65,0.00038465,30]
[361879244,1747861877199,-1068.06,0.00038465,30]
[361879245,1747861877211,-1176.52,0.00038465,30]
[361879246,1747861877221,-932.09,0.00038465,30]
[361879247,1747861877233,-420.0,0.00038465,30]
[361879248,1747861877243,-420.0,0.00038465,30]
[361879249,1747861877253,-420.0,0.00038465,30]
[361879250,1747861877265,-505.2,0.00038465,30]
[361879251,1747861877275,-1033.59,0.00038465,30]
[361879252,1747861877289,-652.73,0.00038465,30]
[361879253,1747861877300,-425.48,0.00038465,30]
[361879254,1747861877310,-420.0,0.00038465,30]
[361879255,1747861877321,-420.0,0.00038465,30]
[361879256,1747861877332,-944.13,0.00038465,30]
[361879257,1747861877342,-420.0,0.00038465,30]
[361879258,1747861877352,-420.0,0.00038465,30]
[361879259,1747861877363,-303.0372234,0.00038465,30]
[361879260,1747861877374,-420.0,0.00038465,30]
[361879261,1747861877386,-420.0,0.00038465,30]
[361879262,1747861877396,-1469.96,0.00038465,30]
[361879263,1747861877407,-576.35,0.00038465,30]
[361879264,1747861877417,-1491.27,0.00038465,30]
[361879265,1747861877427,-420.0,0.00038465,30]
[361879266,1747861877437,-420.0,0.00038465,30]
[361879267,1747861877447,-420.0,0.00038465,30]
[361879268,1747861877458,-420.0,0.00038465,30]
[361879269,1747861877468,-1237.09,0.00038465,30]
[361879270,1747861877479,-420.0,0.00038465,30]
[361879271,1747861877500,-739.87,0.00038465,30]
[361879272,1747861877510,-1764.01,0.00038465,30]
[361879273,1747861877520,-422.65,0.00038465,30]
[361879274,1747861877530,-420.0,0.00038465,30]
[361879275,1747861877542,-420.0,0.00038465,30]
[361879276,1747861877552,-676.19,0.00038465,30]
[361879277,1747861877561,-420.0,0.00038465,30]
[361879278,1747861877571,-535.4,0.00038465,30]
[361879279,1747861877581,-2322.37,0.00038465,30]
[361879280,1747861877591,-420.0,0.00038465,30]
[361879281,1747861877601,-420.0,0.00038465,30]
[361879282,1747861877610,-1246.2,0.00038465,30]
[361879283,1747861877620,-420.0,0.00038465,30]
[361879284,1747861877630,-37978.05,0.00038465,7]
[361879285,1747861877640,-420.0,0.00038465,30]
[361879286,1747861877649,-524.7,0.00038465,30]
[361879287,1747861877659,-420.0,0.00038465,30]
[361879288,1747861877670,-711.34,0.00038465,30]
[361879289,1747861877681,-420.0,0.00038465,30]
[361879290,1747861877690,-420.0,0.00038465,30]
[361879291,1747861877702,-1175.26,0.00038465,30]
[361879292,1747861877713,-420.0,0.00038465,30]
[361879293,1747861877728,-448.35889541,0.00038465,30]
[361879294,1747861877749,-462.02,0.00038465,30]
[361879295,1747861877767,-420.0,0.00038465,30]
[361879296,1747861877782,-500.0,0.00038465,30]
[361879297,1747861877800,-769.96,0.00038465,30]
[361879298,1747861877817,-1332.87,0.00038465,30]
[361879299,1747861877834,-420.0,0.00038465,30]
[361879300,1747861877853,-420.0,0.00038465,30]
[361879301,1747861877869,-545.61,0.00038465,30]
[361879302,1747861877882,-1564.49,0.00038465,30]
[361879303,1747861877900,-420.0,0.00038465,30]
[361879304,1747861877917,-578.17,0.00038465,30]
[361879305,1747861877934,-500.0,0.00038465,120]
[361879306,1747861877952,-420.0,0.00038465,30]
[361879307,1747861877970,-420.0,0.00038465,30]
[361879308,1747861877988,-1487.79,0.00038465,30]
[361879309,1747861878005,-425.04,0.00038465,30]
[361879310,1747861878022,-420.0,0.00038465,30]
[361879311,1747861878042,-420.0,0.00038465,30]
[361879312,1747861878058,-420.0,0.00038465,30]
[361879313,1747861878081,-420.0,0.00038465,30]
[361879314,1747861878099,-420.0,0.00038465,30]
[361879315,1747861878115,-420.0,0.00038465,30]
[361879316,1747861878128,-420.0,0.00038465,30]
[361879317,1747861878143,-420.0,0.00038465,30]
[361879318,1747861878162,-420.0,0.00038465,30]
[361879319,1747861878174,-320.158838,0.00038465,30]
[361879320,1747861878186,-1114.79,0.00038465,30]
[361879321,1747861878202,-420.0,0.00038465,30]
[361879322,1747861878221,-420.0,0.00038465,30]
[361879323,1747861878234,-151.0,0.00038465,14]
[361879324,1747861878247,-151.0,0.00038465,14]
[361879325,1747861878263,-1876.84,0.00038465,30]
[361879326,1747861878277,-420.0,0.00038465,30]
[361879327,1747861878294,-463.75,0.00038465,30]
[361879328,1747861878311,-420.0,0.00038465,30]
[361879329,1747861878330,-420.0,0.00038465,30]
[361879330,1747861878349,-1167.48,0.00038465,30]
[361879331,1747861878367,-1262.6,0.00038465,30]
[361879332,1747861878383,-523.47,0.00038465,30]
[361879333,1747861878400,-445.33,0.00038465,30]
[361879334,1747861878417,-151.0,0.00038465,14]
[361879335,1747861878435,-151.0,0.00038465,14]
[361879336,1747861878452,-420.0,0.00038465,30]
[361879337,1747861878467,-420.0,0.00038465,30]
[361879338,1747861878499,-420.0,0.00038465,30]
[361879339,1747861878514,-151.0,0.00038465,14]
[361879340,1747861878531,-1869.85,0.00038465,30]
[361879341,1747861878547,-171.733615,0.00038465,14]
[361879342,1747861878564,-420.0,0.00038465,30]
[361879343,1747861878580,-420.0,0.00038465,30]
[361879344,1747861878596,-420.0,0.00038465,30]
[361879345,1747861878612,-511.0,0.00038465,30]
[361879346,1747861878628,-420.0,0.00038465,30]
[361879347,1747861878644,-246.654871,0.00038465,14]
[361879348,1747861878659,-420.0,0.00038465,30]
[361879349,1747861878675,-420.0,0.00038465,30]
[361879350,1747861878690,-1226.19,0.00038465,30]
[361879351,1747861878705,-246.654871,0.00038465,14]
[361879352,1747861878720,-420.0,0.00038465,30]
[361879353,1747861878736,-432.03,0.00038465,30]
[361879354,1747861878751,-1357.51,0.00038465,30]
[361879355,1747861878767,-307.27,0.00038465,30]
[361879356,1747861878781,-291.74755736,0.00038465,30]
[361879358,1747861879802,-235.13946211,0.00038465,30]
[361879359,1747861879816,-999.97426389,0.00038465,30]
[361879360,1747861879832,-739.82573611,0.00038465,30]
[361879361,1747861879846,-631.57,0.00038465,30]
[361879362,1747861879859,-518.85,0.00038465,30]
[361879363,1747861879873,-533.84262014,0.00038465,30]
[361879364,1747861879886,-420.0,0.00038465,30]
[361879365,1747861879899,-246.654871,0.00038465,14]
[361879366,1747861879908,-420.0,0.00038465,30]
[361879367,1747861879918,-96.58220881,0.00038465,14]
[361879374,1747861922999,200.0,0.00027786,117]
[361879375,1747861923069,200.0,0.00025725,117]
[361879379,1747862403447,200.0,0.00027786,117]
[361879380,1747862404229,200.0,0.00025725,117]
[361879381,1747862404303,200.0,0.00027116,117]
[361879383,1747862421095,-154.97,0.00013699,2]
[361879384,1747862456133,3000.0,0.0002,30]
[361879386,1747862709210,-241.11012424,0.00012,2]
[361879387,1747862712718,-223.14565518,0.00012,2]
[361879388,1747862717131,-201.0,0.00012,2]
[361879389,1747862718568,-201.0,0.00012,2]
[361879390,1747862720613,-393.20233347,0.00012,2]
[361879391,1747862724623,-240.90543288,0.00012,2]
[361879392,1747862727339,-192.70470849,0.00012,2]
[361879393,1747862730750,-205.0,0.00012,2]
[361879396,1747862732934,-268.90880461,0.00011999,2]
[361879397,1747862736294,-31.09119539,0.00011999,2]
[361879398,1747862736321,-171.90880461,0.00012,2]
[361879399,1747862741108,-220.36119539,0.00012,2]
[361879400,1747862743840,-389.93,0.00012,2]
[361879401,1747862748626,-168.75,0.00012,2]
[361879402,1747862751219,-178.95,0.00012,2]
[361879403,1747862755203,2682.25510513,6.94e-05,2]
[361879404,1747862756530,-318.76073379,0.00012,2]
[361879405,1747862762498,-170.55339718,0.00012,2]
[361879406,1747862762660,1065.19861922,8e-05,2]
[361879407,1747862764439,-246.89,0.00012,2]
[361879408,1747862769243,-189.63586903,0.00012,2]
[361879657,1747862906564,-150.0,0.00011999,2]
[361879658,1747862906591,-300.0,0.00011999,2]
[361879659,1747862906618,-209.91664899,0.00011999,2]
[361879660,1747862906648,-500.0,0.00011999,2]
[361879661,1747862906678,-176.55567594,0.00011999,2]
[361879662,1747862906705,-286.4835048,0.00011999,2]
[361879663,1747862906731,-212.75061965,0.00011999,2]
[361879664,1747862906759,-998164.29355062,0.00012,2]
[361879665,1747862907884,-1000000.0,0.00012,2]
[361879671,1747862949485,-169.99107911,0.000119,2]
[361879672,1747862949508,-40.96958844,0.000119,2]
[361879684,1747862956534,-250.0,0.000119,2]
[361879729,1747862957924,-195.5547184,0.000119,2]
[361880676,1747863031773,-1066.23655852,0.0001189,2]
[361880677,1747863031793,-1209.1542531,0.0001189,2]
[361880678,1747863031804,-655.02745365,0.0001189,2]
[361880679,1747863031815,-109.24692173,0.0001189,2]
[361880680,1747863031826,-86.97432263,0.000119,2]
[361880681,1747863031836,-500.0,0.00011973,2]
[361880682,1747863031845,-45.79451379,0.00011973,2]
[361880683,1747863031858,-454.20548621,0.00011973,2]
[361880684,1747863031867,-66.38604972,0.00011973,2]
[361880685,1747863031882,-433.61395028,0.00011973,2]
[361880686,1747863031892,-1200.0,0.00011999,2]
[361880687,1747863031901,-150.0,0.00011999,2]
[361880688,1747863031910,-208.67410497,0.00011999,2]
[361880689,1747863031920,-500.0,0.00011999,2]
[361880690,1747863031930,-623.63928442,0.00011999,2]
[361880691,1747863031940,-500.0,0.00011999,2]
[361880692,1747863031949,-500.0,0.00011999,2]
[361880693,1747863031959,-477.59084403,0.00011999,2]
[361880694,1747863031968,-500.0,0.00011999,2]
[361880695,1747863031978,-500.0,0.00011999,2]
[361880696,1747863031988,-500.0,0.00011999,2]
[361880697,1747863031997,-500.0,0.00011999,2]
[361880698,1747863032006,-500.0,0.00011999,2]
[361880699,1747863032015,-500.0,0.00011999,2]
[361880700,1747863032025,-500.0,0.00011999,2]
[361880701,1747863032034,-500.0,0.00011999,2]
[361880702,1747863032043,-500.0,0.00011999,2]
[361880703,1747863032052,-263.63910875,0.00011999,2]
[361880713,1747863032163,-236.36089125,0.00011999,2]
[361880716,1747863032172,-102.3971966,0.00011999,2]
[361880719,1747863032183,-397.6028034,0.00011999,2]
[361880723,1747863032193,-77.26957464,0.00011999,2]
[361881312,1747863038528,-167.64238623,0.00011939,2]
[361881314,1747863038539,-234.00204516,0.00011998,2]
[361881316,1747863038551,-65.99795484,0.00011998,2]
[361881319,1747863038561,-422.73042536,0.00011999,2]
[361881321,1747863038571,-259.2716204,0.00011999,2]
[361881323,1747863038587,-240.7283796,0.00011999,2]
[361881325,1747863038597,-500.0,0.00011999,2]
[361881327,1747863038607,-500.0,0.00011999,2]
[361881329,1747863038616,-419.9716204,0.00011999,2]
[361881333,1747863038645,-80.0283796,0.00011999,2]
[361881335,1747863038656,-500.0,0.00011999,2]
[361881337,1747863038668,-500.0,0.00011999,2]
[361881339,1747863038678,-114.77912384,0.00011999,2]
[361881343,1747863038703,-385.22087616,0.00011999,2]
[361881345,1747863038712,-500.0,0.00011999,2]
[361881347,1747863038723,-500.0,0.00011999,2]
[361881349,1747863038732,-400.56728384,0.00011999,2]
[361881351,1747863038744,-99.43271616,0.00011999,2]
[361881353,1747863038755,-500.0,0.00011999,2]
[361881355,1747863038764,-500.0,0.00011999,2]
[361881357,1747863038774,-463.16770499,0.00011999,2]
[361881477,1747863040036,-36.83229501,0.00011999,2]
[361881479,1747863040046,-500.0,0.00011999,2]
[361881481,1747863040056,-500.0,0.00011999,2]
[361881483,1747863040066,-500.0,0.00011999,2]
[361881485,1747863040075,-124.77206463,0.00011999,2]
[361881487,1747863040087,-375.22793537,0.00011999,2]
[361881489,1747863040097,-500.0,0.00011999,2]
[361881491,1747863040106,-500.0,0.00011999,2]
[361881493,1747863040115,-500.0,0.00011999,2]
[361881495,1747863040125,-500.0,0.00011999,2]
[361881497,1747863040134,-500.0,0.00011999,2]
[361881499,1747863040144,-500.0,0.00011999,2]
[361881501,1747863040153,-500.0,0.00011999,2]
[361881503,1747863040163,-500.0,0.00011999,2]
[361881505,1747863040172,-500.0,0.00011999,2]
[361881507,1747863040183,-602.32409948,0.00011999,2]
[361881509,1747863040192,-500.0,0.00011999,2]
[361881511,1747863040202,-500.0,0.00011999,2]
[361881513,1747863040212,-500.0,0.00011999,2]
[361881515,1747863040221,-500.0,0.00011999,2]
[361881517,1747863040232,-500.0,0.00011999,2]
[361881519,1747863040242,-19089.4899565,0.00012,2]
[361881567,1747863040696,-0.00464895,0.00012,2]
[361881577,1747863040788,-314.303,0.00012,2]
[361881705,1747863042772,-224.11715223,0.0001199,2]
[361881706,1747863042783,-224.11715223,0.0001199,2]
[361881707,1747863042793,-15734.43279841,0.00012,2]
[361881710,1747863042832,-1012.29540611,0.00012,2]
[361881713,1747863042892,-9942.45151956,0.00012,2]
[361881724,1747863045664,-208.32732346,0.000119,2]
[361881725,1747863045675,-910600.25844508,0.00012,2]
[361881726,1747863045724,-2458.54353446,0.00012,2]
[361881727,1747863045869,-685.98104666,0.00012,2]
[361881728,1747863045902,-5570.45453968,0.00012,2]
[361881729,1747863045914,-68362.94982435,0.00012,2]
[361881769,1747863084591,1003.18,0.00025306,120]
[361881770,1747863084784,1003.18,0.00027606,120]
[361881773,1747863086797,-270.18188148,0.000119,2]
[361881805,1747863343316,-237.6773929,0.00011495,2]
[361881806,1747863345782,-217.25474752,0.00011495,2]
[361881807,1747863348627,-217.25474752,0.00011495,2]
[361881808,1747863350161,-151.76029635,0.00011495,2]
[361881809,1747863356609,-217.41760271,0.00011495,2]
[361881810,1747863360297,-186.68430415,0.00011495,2]
[361881811,1747863361824,-226.23444383,0.00011495,2]
[361881812,1747863364713,-236.6342652,0.00011495,2]
[361881813,1747863367452,-173.15398828,0.00011495,2]
[361881814,1747863369125,250.0,0.00011413,2]
[361881815,1747863369593,-271.11299854,0.00011495,2]
[361881816,1747863372515,-156.58,0.00011495,2]
[361881817,1747863377375,-180.83654095,0.00011495,2]
[361881818,1747863436632,681.82,0.00011366,2]
[361881820,1747863497478,2017.96,0.0001108,2]
[361881821,1747863572752,1731.15,0.00011041,2]
[361881822,1747863741523,150.0,0.00010946,7]
[361881823,1747863758478,200.0,0.00010946,2]
[361881824,1747863840984,1357.012805,0.00011437,2]
[361881825,1747863939912,189.8788097,0.00011445,2]
[361881827,1747863971383,1500.0,0.00010954,2]
[361881828,1747863991604,153.12,0.00010944,2]
[361881899,1747864049765,3062.19,0.00011233,2]
[361881900,1747864103156,194.37,8.734e-05,2]
[361881901,1747864133083,456.6,0.00010917,2]
[361882038,1747864186799,150.0,0.00010959,2]
[361882039,1747864196282,1520.65,9.004e-05,2]
[361882040,1747864196416,1520.65,0.00011268,2]
[361882041,1747864205076,242.97936246,0.00011479,2]
[361882046,1747864232027,-1663.63867205,0.00011495,2]
[361882047,1747864232038,-200.0,0.00011495,2]
[361882048,1747864232050,-250.0,0.00011495,2]
[361882049,1747864232059,-210.20037413,0.00011495,2]
[361882050,1747864232069,-250.0,0.00011541,2]
[361882051,1747864232082,-247.88,0.00011574,2]
[361882052,1747864232091,-306.36129891,0.000116,2]
[361882053,1747864232102,-210.20037413,0.000116,2]
[361882054,1747864232112,-153.12,0.00011726,2]
[361882055,1747864232122,-163.91,0.00011775,2]
[361882056,1747864232132,-1200.0,0.00011794,2]
[361882057,1747864232143,-300.0,0.00011795,2]
[361882059,1747864232152,-23900.0,0.00011796,2]
[361882061,1747864232164,-21233.83150359,0.00011894,2]
[361882063,1747864232174,-150.0,0.00011898,2]
[361882065,1747864232184,-3200.84,0.00011899,2]
[361882067,1747864232193,-167.114,0.00011899,2]
[361882069,1747864232202,-3465.39331248,0.00011899,2]
[361882071,1747864232211,-508.57764392,0.00011899,2]
[361882073,1747864232221,-170.7494034,0.000119,2]
[361882075,1747864232230,-517.16109767,0.000119,2]
[361882077,1747864232239,-169.99107907,0.000119,2]
[361882079,1747864232249,-3465.39331241,0.000119,2]
[361882081,1747864232259,-3465.39331241,0.00011902,2]
[361882083,1747864232268,-3465.39331241,0.00011903,2]
[361882085,1747864232278,-3465.39331241,0.00011904,2]
[361882086,1747864232287,-3465.39331241,0.00011906,2]
[361882088,1747864232297,-3465.39331241,0.00011907,2]
[361882090,1747864232306,-3465.39331241,0.00011908,2]
[361882093,1747864232315,-3465.39331241,0.0001191,2]
[361882095,1747864232325,-3465.39331241,0.00011911,2]
[361882097,1747864232335,-1813.20033837,0.00011911,2]
[361882098,1747864232344,-587.3477785,0.00011911,2]
[361882100,1747864232354,-185.04913074,0.00011911,2]
[361882103,1747864232363,-500.0,0.00011973,2]
[361882106,1747864232372,-500.0,0.00011973,2]
[361882109,1747864232382,-500.0,0.00011973,2]
[361882111,1747864232391,-500.0,0.00011973,2]
[361882113,1747864232402,-122705.95309264,0.00011997,2]
[361882116,1747864232414,-11494.39439972,0.00011997,2]
[361882118,1747864232423,-336.3135,0.00011999,2]
[361882120,1747864232433,-236.6342652,0.00011999,2]
[361882122,1747864232442,-175.82182088,0.00011999,2]
[361882123,1747864232452,-609.88613358,0.00012,2]
[361882125,1747864232462,-174961.22354104,0.00012,2]
[361882238,1747864238209,-300.0,0.00011795,2]
[361882239,1747864238219,-1382.25098,0.00012,2]
[361882260,1747864240118,-1669.18813285,0.00012,2]
[361882261,1747864240130,-1356.46030464,0.00012,2]
[361882262,1747864240231,-1195.199179,0.00012,2]
[361882263,1747864240243,-2254.81912769,0.00012,2]
[361882264,1747864240254,-842.77876737,0.00012,2]
[361882265,1747864240266,-65168.75731537,0.00012,2]
[361882266,1747864240290,-1719.25,0.00012,2]
[361882267,1747864240358,-1082150.24827607,0.00012,2]
[361882268,1747864240368,-191681.14644243,0.00012,2]
[361882269,1747864240378,-4854482.89861894,0.00012,2]
[361882270,1747864240388,-2699.0667,0.00012,2]
[361882271,1747864240397,-848.05,0.00012055,2]
[361882272,1747864240407,-156.39,0.000125,2]
[361882273,1747864240417,-156.39,0.000125,2]
[361882274,1747864240428,-156.39,0.000125,2]
[361882275,1747864240438,-156.39,0.000125,2]
[361882276,1747864240448,-153.12,0.00012508,2]
[361882277,1747864240458,-818.0,0.00012518,2]